Workbook

Sheet START
B1: Über die Vorlage
B2: Verwenden Sie diese Vorlage, um Monats- und Jahresbudgets zu verwalten.
B3: Geben Sie Einnahmen und Ausgaben in die jeweiligen Tabellen ein, um Fehlbeträge oder Liquiditätsüberschüsse für jeden Monat und jedes Jahr zu berechnen.
B4: Sparklines werden automatisch in jeder Tabelle aktualisiert.
B5: Anmerkung:
B6: Zusätzliche Anweisungen wurden in Spalte A auf dem Arbeitsblatt PERSÖNLICHES BUDGET bereitgestellt. Diese Texte wurden absichtlich ausgeblendet. Um die Texte zu entfernen, wählen Sie Spalte A und dann ENTF aus. Um die Texte einzublenden, wählen Sie Spalte A aus, und ändern Sie die Schriftfarbe.
B7: Um mehr über Tabellen zu erfahren, drücken Sie die UMSCHALTTASTE und dann F10 innerhalb einer Tabelle, und wählen Sie die Option TABELLE und dann ALTERNATIVTEXT aus.

Sheet PERSÖNLICHES BUDGET
A1: Erstellen Sie auf diesem Arbeitsblatt ein einfaches persönliches Budget. Hilfreiche Anweisungen zur Verwendung dieses Arbeitsblatts stehen in Zellen in dieser Spalte. Drücken Sie die NACH-UNTEN-TASTE, um anzufangen.
A2: Der Titel dieses Arbeitsblatts befindet sich in der Zelle rechts. Geben Sie das Jahr in der Zelle Q2 ein. Die nächste Anweisung finden Sie in Zelle A4. | B2: PERSÖNLICHES BUDGET | Q2: =YEAR(TODAY()) -> 2019
A4: Bezeichnungen befinden sich in den Zellen C4 bis P4. | C4: EINKOMMEN | D4: JAN | E4: FEB | F4: MRZ | G4: APR | H4: MAI | I4: JUN | J4: JUL | K4: AUG | L4: SEP | M4: OKT | N4: NOV | O4: DEZ | P4: JAHR
A5: Geben Sie Details in der Tabelle „Einkünfte“ ab Zelle C5 ein. Die nächste Anweisung finden Sie in Zelle A11. | C5: EINKÜNFTE | D5: Januar | E5: Februar | F5: März | G5: April | H5: Mai | I5: Juni | J5: Juli | K5: August | L5: September | M5: Oktober | N5: November | O5: Dezember | P5: Jahr | Q5: Sparkline
C6: Gehälter | D6: 2,600.00 € | E6: 2,600.00 € | F6: 2,600.00 € | P6: =SUM(Einkünfte[[#This Row],[Januar]:[Dezember]]) -> 7,800.00 €
C7: Zinsen/Dividenden | D7: 649.00 € | E7: 313.00 € | F7: 664.00 € | P7: =SUM(Einkünfte[[#This Row],[Januar]:[Dezember]]) -> 1,626.00 €
C8: Sonstiges | D8: 474.00 € | E8: 643.00 € | F8: 380.00 € | P8: =SUM(Einkünfte[[#This Row],[Januar]:[Dezember]]) -> 1,497.00 €
C9: Ergebnis | D9: =SUBTOTAL(109,Einkünfte[Januar]) -> 3,723.00 € | E9: =SUBTOTAL(109,Einkünfte[Februar]) -> 3,556.00 € | F9: =SUBTOTAL(109,Einkünfte[März]) -> 3,644.00 € | G9: =SUBTOTAL(109,Einkünfte[April]) -> 0.00 € | H9: =SUBTOTAL(109,Einkünfte[Mai]) -> 0.00 € | I9: =SUBTOTAL(109,Einkünfte[Juni]) -> 0.00 € | J9: =SUBTOTAL(109,Einkünfte[Juli]) -> 0.00 € | K9: =SUBTOTAL(109,Einkünfte[August]) -> 0.00 € | L9: =SUBTOTAL(109,Einkünfte[September]) -> 0.00 € | M9: =SUBTOTAL(109,Einkünfte[Oktober]) -> 0.00 € | N9: =SUBTOTAL(109,Einkünfte[November]) -> 0.00 € | O9: =SUBTOTAL(109,Einkünfte[Dezember]) -> 0.00 € | P9: =SUBTOTAL(109,Einkünfte[Jahr]) -> 10,923.00 €
A11: Bezeichnungen befinden sich in den Zellen C11 bis P11. | C11: AUSGABEN | D11: JAN | E11: FEB | F11: MRZ | G11: APR | H11: MAI | I11: JUN | J11: JUL | K11: AUG | L11: SEP | M11: OKT | N11: NOV | O11: DEZ | P11: JAHR
A12: Geben Sie die Haushaltseingaben in der Tabelle ab Zelle C12 ein. Die nächste Anweisung finden Sie in Zelle A20. | C12: PRIVAT | D12: Januar | E12: Februar | F12: März | G12: April | H12: Mai | I12: Juni | J12: Juli | K12: August | L12: September | M12: Oktober | N12: November | O12: Dezember | P12: Jahr | Q12: Sparkline
C13: Hypothek | D13: 750.00 € | E13: 750.00 € | F13: 750.00 € | P13: =SUM(Zuhause[[#This Row],[Januar]:[Dezember]]) -> 2,250.00 €
C14: Versicherung | P14: =SUM(Zuhause[[#This Row],[Januar]:[Dezember]]) -> 0.00 €
C15: Reparaturen | F15: 75.00 € | P15: =SUM(Zuhause[[#This Row],[Januar]:[Dezember]]) -> 75.00 €
C16: Dienstleistungen | D16: 35.00 € | E16: 35.00 € | F16: 35.00 € | P16: =SUM(Zuhause[[#This Row],[Januar]:[Dezember]]) -> 105.00 €
C17: Nebenkosten | D17: 165.00 € | E17: 165.00 € | F17: 165.00 € | P17: =SUM(Zuhause[[#This Row],[Januar]:[Dezember]]) -> 495.00 €
C18: Ergebnis | D18: =SUBTOTAL(109,Zuhause[Januar]) -> 950.00 € | E18: =SUBTOTAL(109,Zuhause[Februar]) -> 950.00 € | F18: =SUBTOTAL(109,Zuhause[März]) -> 1,025.00 € | G18: =SUBTOTAL(109,Zuhause[April]) -> 0.00 € | H18: =SUBTOTAL(109,Zuhause[Mai]) -> 0.00 € | I18: =SUBTOTAL(109,Zuhause[Juni]) -> 0.00 € | J18: =SUBTOTAL(109,Zuhause[Juli]) -> 0.00 € | K18: =SUBTOTAL(109,Zuhause[August]) -> 0.00 € | L18: =SUBTOTAL(109,Zuhause[September]) -> 0.00 € | M18: =SUBTOTAL(109,Zuhause[Oktober]) -> 0.00 € | N18: =SUBTOTAL(109,Zuhause[November]) -> 0.00 € | O18: =SUBTOTAL(109,Zuhause[Dezember]) -> 0.00 € | P18: =SUBTOTAL(109,Zuhause[Jahr]) -> 2,925.00 €
A20: Geben Sie die täglichen Ausgaben in der Tabelle ab Zelle C20 ein. Die nächste Anweisung finden Sie in Zelle A29. | C20: TÄGLICHER LEBENSUNTERHALT | D20: Januar | E20: Februar | F20: März | G20: April | H20: Mai | I20: Juni | J20: Juli | K20: August | L20: September | M20: Oktober | N20: November | O20: Dezember | P20: Jahr | Q20: Sparkline
C21: Lebensmittel | D21: 191.00 € | E21: 152.00 € | F21: 145.00 € | P21: =SUM(Täglich[[#This Row],[Januar]:[Dezember]]) -> 488.00 €
C22: Kinderbetreuung | D22: 200.00 € | E22: 200.00 € | F22: 200.00 € | P22: =SUM(Täglich[[#This Row],[Januar]:[Dezember]]) -> 600.00 €
C23: Chemische Reinigung | D23: 20.00 € | F23: 20.00 € | P23: =SUM(Täglich[[#This Row],[Januar]:[Dezember]]) -> 40.00 €
C24: Ausgehen | D24: 55.00 € | F24: 56.00 € | P24: =SUM(Täglich[[#This Row],[Januar]:[Dezember]]) -> 111.00 €
C25: Hausreinigung | D25: 25.00 € | E25: 17.00 € | F25: 7.00 € | P25: =SUM(Täglich[[#This Row],[Januar]:[Dezember]]) -> 49.00 €
C26: Hundeausführer | D26: 10.00 € | E26: 5.00 € | F26: 7.00 € | P26: =SUM(Täglich[[#This Row],[Januar]:[Dezember]]) -> 22.00 €
C27: Ergebnis | D27: =SUBTOTAL(109,Täglich[Januar]) -> 501.00 € | E27: =SUBTOTAL(109,Täglich[Februar]) -> 374.00 € | F27: =SUBTOTAL(109,Täglich[März]) -> 435.00 € | G27: =SUBTOTAL(109,Täglich[April]) -> 0.00 € | H27: =SUBTOTAL(109,Täglich[Mai]) -> 0.00 € | I27: =SUBTOTAL(109,Täglich[Juni]) -> 0.00 € | J27: =SUBTOTAL(109,Täglich[Juli]) -> 0.00 € | K27: =SUBTOTAL(109,Täglich[August]) -> 0.00 € | L27: =SUBTOTAL(109,Täglich[September]) -> 0.00 € | M27: =SUBTOTAL(109,Täglich[Oktober]) -> 0.00 € | N27: =SUBTOTAL(109,Täglich[November]) -> 0.00 € | O27: =SUBTOTAL(109,Täglich[Dezember]) -> 0.00 € | P27: =SUBTOTAL(109,Täglich[Jahr]) -> 1,310.00 €
A29: Geben Sie die Transportausgaben in der Tabelle ab Zelle C29 ein. Die nächste Anweisung finden Sie in Zelle A38. | C29: TRANSPORTAUSGABEN | D29: Januar | E29: Februar | F29: März | G29: April | H29: Mai | I29: Juni | J29: Juli | K29: August | L29: September | M29: Oktober | N29: November | O29: Dezember | P29: Jahr | Q29: Sparkline
C30: Gas/Kraftstoff | D30: 195.00 € | E30: 125.00 € | F30: 171.00 € | P30: =SUM(Anreise[[#This Row],[Januar]:[Dezember]]) -> 491.00 €
C31: Versicherungen | D31: 165.00 € | E31: 165.00 € | F31: 165.00 € | P31: =SUM(Anreise[[#This Row],[Januar]:[Dezember]]) -> 495.00 €
C32: Reparaturen | P32: =SUM(Anreise[[#This Row],[Januar]:[Dezember]]) -> 0.00 €
C33: Autowäsche/-pflege | D33: 10.00 € | P33: =SUM(Anreise[[#This Row],[Januar]:[Dezember]]) -> 10.00 €
C34: Parken | D34: 10.00 € | E34: 40.00 € | F34: 20.00 € | P34: =SUM(Anreise[[#This Row],[Januar]:[Dezember]]) -> 70.00 €
C35: Öffentlicher Personenverkehr | D35: 20.00 € | E35: 40.00 € | F35: 30.00 € | P35: =SUM(Anreise[[#This Row],[Januar]:[Dezember]]) -> 90.00 €
C36: Ergebnis | D36: =SUBTOTAL(109,Anreise[Januar]) -> 400.00 € | E36: =SUBTOTAL(109,Anreise[Februar]) -> 370.00 € | F36: =SUBTOTAL(109,Anreise[März]) -> 386.00 € | G36: =SUBTOTAL(109,Anreise[April]) -> 0.00 € | H36: =SUBTOTAL(109,Anreise[Mai]) -> 0.00 € | I36: =SUBTOTAL(109,Anreise[Juni]) -> 0.00 € | J36: =SUBTOTAL(109,Anreise[Juli]) -> 0.00 € | K36: =SUBTOTAL(109,Anreise[August]) -> 0.00 € | L36: =SUBTOTAL(109,Anreise[September]) -> 0.00 € | M36: =SUBTOTAL(109,Anreise[Oktober]) -> 0.00 € | N36: =SUBTOTAL(109,Anreise[November]) -> 0.00 € | O36: =SUBTOTAL(109,Anreise[Dezember]) -> 0.00 € | P36: =SUBTOTAL(109,Anreise[Jahr]) -> 1,156.00 €
A38: Geben Sie die Ausgaben für Unterhaltung in der Tabelle ab Zelle C38 ein. Die nächste Anweisung finden Sie in Zelle A45. | C38: UNTERHALTUNG | D38: Januar | E38: Februar | F38: März | G38: April | H38: Mai | I38: Juni | J38: Juli | K38: August | L38: September | M38: Oktober | N38: November | O38: Dezember | P38: Jahr | Q38: Sparkline
C39: Kabel-TV | D39: 85.00 € | E39: 85.00 € | F39: 85.00 € | P39: =SUM(Unterhaltung[[#This Row],[Januar]:[Dezember]]) -> 255.00 €
C40: Video-/DVD-Ausleihe | D40: 7.00 € | E40: 8.00 € | F40: 9.00 € | P40: =SUM(Unterhaltung[[#This Row],[Januar]:[Dezember]]) -> 24.00 €
C41: Filme/Theater | D41: 9.00 € | E41: 5.00 € | F41: 9.00 € | P41: =SUM(Unterhaltung[[#This Row],[Januar]:[Dezember]]) -> 23.00 €
C42: Konzerte/Clubs | D42: 5.00 € | E42: 5.00 € | F42: 7.00 € | P42: =SUM(Unterhaltung[[#This Row],[Januar]:[Dezember]]) -> 17.00 €
C43: Ergebnis | D43: =SUBTOTAL(109,Unterhaltung[Januar]) -> 106.00 € | E43: =SUBTOTAL(109,Unterhaltung[Februar]) -> 103.00 € | F43: =SUBTOTAL(109,Unterhaltung[März]) -> 110.00 € | G43: =SUBTOTAL(109,Unterhaltung[April]) -> 0.00 € | H43: =SUBTOTAL(109,Unterhaltung[Mai]) -> 0.00 € | I43: =SUBTOTAL(109,Unterhaltung[Juni]) -> 0.00 € | J43: =SUBTOTAL(109,Unterhaltung[Juli]) -> 0.00 € | K43: =SUBTOTAL(109,Unterhaltung[August]) -> 0.00 € | L43: =SUBTOTAL(109,Unterhaltung[September]) -> 0.00 € | M43: =SUBTOTAL(109,Unterhaltung[Oktober]) -> 0.00 € | N43: =SUBTOTAL(109,Unterhaltung[November]) -> 0.00 € | O43: =SUBTOTAL(109,Unterhaltung[Dezember]) -> 0.00 € | P43: =SUBTOTAL(109,Unterhaltung[Jahr]) -> 319.00 €
A45: Geben Sie die Gesundheitsausgaben in der Tabelle ab Zelle C45 ein. Die nächste Anweisung finden Sie in Zelle A55. | C45: GESUNDHEIT | D45: Januar | E45: Februar | F45: März | G45: April | H45: Mai | I45: Juni | J45: Juli | K45: August | L45: September | M45: Oktober | N45: November | O45: Dezember | P45: Jahr | Q45: Sparkline
C46: Zahlungen Fitnesscenter | D46: 50.00 € | E46: 50.00 € | F46: 50.00 € | P46: =SUM(Gesundheit[[#This Row],[Januar]:[Dezember]]) -> 150.00 €
C47: Versicherungen | D47: 225.00 € | E47: 225.00 € | F47: 225.00 € | P47: =SUM(Gesundheit[[#This Row],[Januar]:[Dezember]]) -> 675.00 €
C48: Rezeptgebühren | D48: 100.00 € | E48: 100.00 € | F48: 100.00 € | P48: =SUM(Gesundheit[[#This Row],[Januar]:[Dezember]]) -> 300.00 €
C49: Frei verkäufliche Medikamente | D49: 6.00 € | E49: 2.00 € | F49: 9.00 € | P49: =SUM(Gesundheit[[#This Row],[Januar]:[Dezember]]) -> 17.00 €
C50: Zuzahlungen/Vorleistungen | D50: 20.00 € | F50: 41.00 € | P50: =SUM(Gesundheit[[#This Row],[Januar]:[Dezember]]) -> 61.00 €
C51: Tierärzte/Tiermedikamente | D51: 4.00 € | F51: 25.00 € | P51: =SUM(Gesundheit[[#This Row],[Januar]:[Dezember]]) -> 29.00 €
C52: Lebensversicherung | D52: 55.00 € | E52: 55.00 € | F52: 55.00 € | P52: =SUM(Gesundheit[[#This Row],[Januar]:[Dezember]]) -> 165.00 €
C53: Ergebnis | D53: =SUBTOTAL(109,Gesundheit[Januar]) -> 460.00 € | E53: =SUBTOTAL(109,Gesundheit[Februar]) -> 432.00 € | F53: =SUBTOTAL(109,Gesundheit[März]) -> 505.00 € | G53: =SUBTOTAL(109,Gesundheit[April]) -> 0.00 € | H53: =SUBTOTAL(109,Gesundheit[Mai]) -> 0.00 € | I53: =SUBTOTAL(109,Gesundheit[Juni]) -> 0.00 € | J53: =SUBTOTAL(109,Gesundheit[Juli]) -> 0.00 € | K53: =SUBTOTAL(109,Gesundheit[August]) -> 0.00 € | L53: =SUBTOTAL(109,Gesundheit[September]) -> 0.00 € | M53: =SUBTOTAL(109,Gesundheit[Oktober]) -> 0.00 € | N53: =SUBTOTAL(109,Gesundheit[November]) -> 0.00 € | O53: =SUBTOTAL(109,Gesundheit[Dezember]) -> 0.00 € | P53: =SUBTOTAL(109,Gesundheit[Jahr]) -> 1,397.00 €
A55: Geben Sie die Ausgaben für Urlaube in der Tabelle ab Zelle C55 ein. Die nächste Anweisung finden Sie in Zelle A64. | C55: URLAUB | D55: Januar | E55: Februar | F55: März | G55: April | H55: Mai | I55: Juni | J55: Juli | K55: August | L55: September | M55: Oktober | N55: November | O55: Dezember | P55: Jahr | Q55: Sparkline
C56: Flugpreis | E56: 485.00 € | P56: =SUM(Urlaub[[#This Row],[Januar]:[Dezember]]) -> 485.00 €
C57: Unterbringung | E57: 245.00 € | P57: =SUM(Urlaub[[#This Row],[Januar]:[Dezember]]) -> 245.00 €
C58: Essen | E58: 95.00 € | P58: =SUM(Urlaub[[#This Row],[Januar]:[Dezember]]) -> 95.00 €
C59: Souvenirs | P59: =SUM(Urlaub[[#This Row],[Januar]:[Dezember]]) -> 0.00 €
C60: Haustierpension | P60: =SUM(Urlaub[[#This Row],[Januar]:[Dezember]]) -> 0.00 €
C61: Mietwagen | E61: 85.00 € | P61: =SUM(Urlaub[[#This Row],[Januar]:[Dezember]]) -> 85.00 €
C62: Ergebnis | D62: =SUBTOTAL(109,Urlaub[Januar]) -> 0.00 € | E62: =SUBTOTAL(109,Urlaub[Februar]) -> 910.00 € | F62: =SUBTOTAL(109,Urlaub[März]) -> 0.00 € | G62: =SUBTOTAL(109,Urlaub[April]) -> 0.00 € | H62: =SUBTOTAL(109,Urlaub[Mai]) -> 0.00 € | I62: =SUBTOTAL(109,Urlaub[Juni]) -> 0.00 € | J62: =SUBTOTAL(109,Urlaub[Juli]) -> 0.00 € | K62: =SUBTOTAL(109,Urlaub[August]) -> 0.00 € | L62: =SUBTOTAL(109,Urlaub[September]) -> 0.00 € | M62: =SUBTOTAL(109,Urlaub[Oktober]) -> 0.00 € | N62: =SUBTOTAL(109,Urlaub[November]) -> 0.00 € | O62: =SUBTOTAL(109,Urlaub[Dezember]) -> 0.00 € | P62: =SUBTOTAL(109,Urlaub[Jahr]) -> 910.00 €
A64: Geben Sie die Freizeitausgaben in der Tabelle ab Zelle C64 ein. Die nächste Anweisung finden Sie in Zelle A71. | C64: FREIZEIT | D64: Januar | E64: Februar | F64: März | G64: April | H64: Mai | I64: Juni | J64: Juli | K64: August | L64: September | M64: Oktober | N64: November | O64: Dezember | P64: Jahr | Q64: Sparkline
C65: Fitness-Studio | P65: =SUM(Erholung[[#This Row],[Januar]:[Dezember]]) -> 0.00 €
C66: Sportausrüstung | P66: =SUM(Erholung[[#This Row],[Januar]:[Dezember]]) -> 0.00 €
C67: Vereinsbeiträge | P67: =SUM(Erholung[[#This Row],[Januar]:[Dezember]]) -> 0.00 €
C68: Spielzeug/Kinderbedarf | D68: 39.00 € | E68: 33.00 € | F68: 40.00 € | P68: =SUM(Erholung[[#This Row],[Januar]:[Dezember]]) -> 112.00 €
C69: Ergebnis | D69: =SUBTOTAL(109,Erholung[Januar]) -> 39.00 € | E69: =SUBTOTAL(109,Erholung[Februar]) -> 33.00 € | F69: =SUBTOTAL(109,Erholung[März]) -> 40.00 € | G69: =SUBTOTAL(109,Erholung[April]) -> 0.00 € | H69: =SUBTOTAL(109,Erholung[Mai]) -> 0.00 € | I69: =SUBTOTAL(109,Erholung[Juni]) -> 0.00 € | J69: =SUBTOTAL(109,Erholung[Juli]) -> 0.00 € | K69: =SUBTOTAL(109,Erholung[August]) -> 0.00 € | L69: =SUBTOTAL(109,Erholung[September]) -> 0.00 € | M69: =SUBTOTAL(109,Erholung[Oktober]) -> 0.00 € | N69: =SUBTOTAL(109,Erholung[November]) -> 0.00 € | O69: =SUBTOTAL(109,Erholung[Dezember]) -> 0.00 € | P69: =SUBTOTAL(109,Erholung[Jahr]) -> 112.00 €
A71: Geben Sie die Ausgaben in der Tabelle „Gebühren und Abonnements“ ab Zeile C71 ein. Die nächste Anweisung finden Sie in Zelle A81. | C71: GEBÜHREN/ABONNEMENTS | D71: Januar | E71: Februar | F71: März | G71: April | H71: Mai | I71: Juni | J71: Juli | K71: August | L71: September | M71: Oktober | N71: November | O71: Dezember | P71: Jahr | Q71: Sparkline
C72: Zeitschriften | P72: =SUM(GebührenUndAbonnements[[#This Row],[Januar]:[Dezember]]) -> 0.00 €
C73: Zeitungen | P73: =SUM(GebührenUndAbonnements[[#This Row],[Januar]:[Dezember]]) -> 0.00 €
C74: Internetverbindung | P74: =SUM(GebührenUndAbonnements[[#This Row],[Januar]:[Dezember]]) -> 0.00 €
C75: Öffentlich-rechtlicher Rundfunk | P75: =SUM(GebührenUndAbonnements[[#This Row],[Januar]:[Dezember]]) -> 0.00 €
C76: Öffentlich-rechtliches Fernsehen | P76: =SUM(GebührenUndAbonnements[[#This Row],[Januar]:[Dezember]]) -> 0.00 €
C77: Religionsgemeinschaften | D77: 29.00 € | E77: 18.00 € | F77: 17.00 € | P77: =SUM(GebührenUndAbonnements[[#This Row],[Januar]:[Dezember]]) -> 64.00 €
C78: Spenden | P78: =SUM(GebührenUndAbonnements[[#This Row],[Januar]:[Dezember]]) -> 0.00 €
C79: Ergebnis | D79: =SUBTOTAL(109,GebührenUndAbonnements[Januar]) -> 29.00 € | E79: =SUBTOTAL(109,GebührenUndAbonnements[Februar]) -> 18.00 € | F79: =SUBTOTAL(109,GebührenUndAbonnements[März]) -> 17.00 € | G79: =SUBTOTAL(109,GebührenUndAbonnements[April]) -> 0.00 € | H79: =SUBTOTAL(109,GebührenUndAbonnements[Mai]) -> 0.00 € | I79: =SUBTOTAL(109,GebührenUndAbonnements[Juni]) -> 0.00 € | J79: =SUBTOTAL(109,GebührenUndAbonnements[Juli]) -> 0.00 € | K79: =SUBTOTAL(109,GebührenUndAbonnements[August]) -> 0.00 € | L79: =SUBTOTAL(109,GebührenUndAbonnements[September]) -> 0.00 € | M79: =SUBTOTAL(109,GebührenUndAbonnements[Oktober]) -> 0.00 € | N79: =SUBTOTAL(109,GebührenUndAbonnements[November]) -> 0.00 € | O79: =SUBTOTAL(109,GebührenUndAbonnements[Dezember]) -> 0.00 € | P79: =SUBTOTAL(109,GebührenUndAbonnements[Jahr]) -> 64.00 €
A81: Geben Sie die persönlichen Ausgaben in der Tabelle ab Zelle C81 ein. Die nächste Anweisung finden Sie in Zelle A89. | C81: PERSÖNLICHEN | D81: Januar | E81: Februar | F81: März | G81: April | H81: Mai | I81: Juni | J81: Juli | K81: August | L81: September | M81: Oktober | N81: November | O81: Dezember | P81: Jahr | Q81: Sparkline
C82: Kleidung | F82: 29.00 € | P82: =SUM(Persönlichen[[#This Row],[Januar]:[Dezember]]) -> 29.00 €
C83: Geschenke | E83: 35.00 € | P83: =SUM(Persönlichen[[#This Row],[Januar]:[Dezember]]) -> 35.00 €
C84: Friseur/Bartpflege | D84: 25.00 € | E84: 25.00 € | F84: 25.00 € | P84: =SUM(Persönlichen[[#This Row],[Januar]:[Dezember]]) -> 75.00 €
C85: Bücher | P85: =SUM(Persönlichen[[#This Row],[Januar]:[Dezember]]) -> 0.00 €
C86: Musik (CDs, usw.). | P86: =SUM(Persönlichen[[#This Row],[Januar]:[Dezember]]) -> 0.00 €
C87: Ergebnis | D87: =SUBTOTAL(109,Persönlichen[Januar]) -> 25.00 € | E87: =SUBTOTAL(109,Persönlichen[Februar]) -> 60.00 € | F87: =SUBTOTAL(109,Persönlichen[März]) -> 54.00 € | G87: =SUBTOTAL(109,Persönlichen[April]) -> 0.00 € | H87: =SUBTOTAL(109,Persönlichen[Mai]) -> 0.00 € | I87: =SUBTOTAL(109,Persönlichen[Juni]) -> 0.00 € | J87: =SUBTOTAL(109,Persönlichen[Juli]) -> 0.00 € | K87: =SUBTOTAL(109,Persönlichen[August]) -> 0.00 € | L87: =SUBTOTAL(109,Persönlichen[September]) -> 0.00 € | M87: =SUBTOTAL(109,Persönlichen[Oktober]) -> 0.00 € | N87: =SUBTOTAL(109,Persönlichen[November]) -> 0.00 € | O87: =SUBTOTAL(109,Persönlichen[Dezember]) -> 0.00 € | P87: =SUBTOTAL(109,Persönlichen[Jahr]) -> 139.00 €
A89: Geben Sie die finanzielle Verpflichtungen in der Tabelle ab Zelle C89 ein. Die nächste Anweisung finden Sie in Zelle A97. | C89: FINANZIELLE VERPFLICHTUNGEN | D89: Januar | E89: Februar | F89: März | G89: April | H89: Mai | I89: Juni | J89: Juli | K89: August | L89: September | M89: Oktober | N89: November | O89: Dezember | P89: Jahr | Q89: Sparkline
C90: Langfristige Spareinlagen | D90: 25.00 € | E90: 25.00 € | F90: 25.00 € | P90: =SUM(Finanzen[[#This Row],[Januar]:[Dezember]]) -> 75.00 €
C91: Altersvorsorge (401k, Roth IRA) | D91: 45.00 € | E91: 45.00 € | F91: 45.00 € | P91: =SUM(Finanzen[[#This Row],[Januar]:[Dezember]]) -> 135.00 €
C92: Kreditkartenzahlungen | D92: 75.00 € | E92: 75.00 € | F92: 75.00 € | P92: =SUM(Finanzen[[#This Row],[Januar]:[Dezember]]) -> 225.00 €
C93: Einkommensteuer (Zusatzeinkünfte) | P93: =SUM(Finanzen[[#This Row],[Januar]:[Dezember]]) -> 0.00 €
C94: Sonstige Verpflichtungen | D94: 32.00 € | E94: 34.00 € | F94: 1.00 € | P94: =SUM(Finanzen[[#This Row],[Januar]:[Dezember]]) -> 67.00 €
C95: Ergebnis | D95: =SUBTOTAL(109,Finanzen[Januar]) -> 177.00 € | E95: =SUBTOTAL(109,Finanzen[Februar]) -> 179.00 € | F95: =SUBTOTAL(109,Finanzen[März]) -> 146.00 € | G95: =SUBTOTAL(109,Finanzen[April]) -> 0.00 € | H95: =SUBTOTAL(109,Finanzen[Mai]) -> 0.00 € | I95: =SUBTOTAL(109,Finanzen[Juni]) -> 0.00 € | J95: =SUBTOTAL(109,Finanzen[Juli]) -> 0.00 € | K95: =SUBTOTAL(109,Finanzen[August]) -> 0.00 € | L95: =SUBTOTAL(109,Finanzen[September]) -> 0.00 € | M95: =SUBTOTAL(109,Finanzen[Oktober]) -> 0.00 € | N95: =SUBTOTAL(109,Finanzen[November]) -> 0.00 € | O95: =SUBTOTAL(109,Finanzen[Dezember]) -> 0.00 € | P95: =SUBTOTAL(109,Finanzen[Jahr]) -> 502.00 €
A97: Geben Sie sonstige Zahlungen in der Tabelle ab Zelle C97 ein. Die nächste Anweisung finden Sie in Zelle A105. | C97: VERSCHIEDENE ZAHLUNGEN | D97: Januar | E97: Februar | F97: März | G97: April | H97: Mai | I97: Juni | J97: Juli | K97: August | L97: September | M97: Oktober | N97: November | O97: Dezember | P97: Jahr | Q97: Sparkline
C98: Sonstiges | P98: =SUM(Verschiedenes[[#This Row],[Januar]:[Dezember]]) -> 0.00 €
C99: Sonstiges | P99: =SUM(Verschiedenes[[#This Row],[Januar]:[Dezember]]) -> 0.00 €
C100: Sonstiges | P100: =SUM(Verschiedenes[[#This Row],[Januar]:[Dezember]]) -> 0.00 €
C101: Sonstiges | P101: =SUM(Verschiedenes[[#This Row],[Januar]:[Dezember]]) -> 0.00 €
C102: Sonstiges | P102: =SUM(Verschiedenes[[#This Row],[Januar]:[Dezember]]) -> 0.00 €
C103: Ergebnis | D103: =SUBTOTAL(109,Verschiedenes[Januar]) -> 0.00 € | E103: =SUBTOTAL(109,Verschiedenes[Februar]) -> 0.00 € | F103: =SUBTOTAL(109,Verschiedenes[März]) -> 0.00 € | G103: =SUBTOTAL(109,Verschiedenes[April]) -> 0.00 € | H103: =SUBTOTAL(109,Verschiedenes[Mai]) -> 0.00 € | I103: =SUBTOTAL(109,Verschiedenes[Juni]) -> 0.00 € | J103: =SUBTOTAL(109,Verschiedenes[Juli]) -> 0.00 € | K103: =SUBTOTAL(109,Verschiedenes[August]) -> 0.00 € | L103: =SUBTOTAL(109,Verschiedenes[September]) -> 0.00 € | M103: =SUBTOTAL(109,Verschiedenes[Oktober]) -> 0.00 € | N103: =SUBTOTAL(109,Verschiedenes[November]) -> 0.00 € | O103: =SUBTOTAL(109,Verschiedenes[Dezember]) -> 0.00 € | P103: =SUBTOTAL(109,Verschiedenes[Jahr]) -> 0.00 €
A105: Die Summen werden in der Tabelle ab Zelle C105 automatisch berechnet. Gesamtausgaben und Fehlbeträge oder Überschüsse werden für jeden Monat und das gesamte Jahr automatisch berechnet, und Sparklines werden aktualisiert. | C105: SUMMEN | D105: JAN | E105: FEB | F105: MRZ | G105: APR | H105: MAI | I105: JUN | J105: JUL | K105: AUG | L105: SEP | M105: OKT | N105: NOV | O105: DEZ | P105: JAHR | Q105: SPARKLINE
C106: Gesamtausgaben | D106: =SUM(Verschiedenes[[#Totals],[Januar]],Finanzen[[#Totals],[Januar]],Persönlichen[[#Totals],[Januar]],GebührenUndAbonnements[[#Totals],[Januar]],Erholung[[#Totals],[Januar]],Urlaub[[#Totals],[Januar]],Gesundheit[[#Totals],[Januar]],Unterhaltung[[#Totals],[Januar]],Anreise[[#Totals],[Januar]],Täglich[[#Totals],[Januar]],Zuhause[[#Totals],[Januar]]) -> 2,687.00 € | E106: =SUM(Verschiedenes[[#Totals],[Februar]],Finanzen[[#Totals],[Februar]],Persönlichen[[#Totals],[Februar]],GebührenUndAbonnements[[#Totals],[Februar]],Erholung[[#Totals],[Februar]],Urlaub[[#Totals],[Februar]],Gesundheit[[#Totals],[Februar]],Unterhaltung[[#Totals],[Februar]],Anreise[[#Totals],[Februar]],Täglich[[#Totals],[Februar]],Zuhause[[#Totals],[Februar]]) -> 3,429.00 € | F106: =SUM(Verschiedenes[[#Totals],[März]],Finanzen[[#Totals],[März]],Persönlichen[[#Totals],[März]],GebührenUndAbonnements[[#Totals],[März]],Erholung[[#Totals],[März]],Urlaub[[#Totals],[März]],Gesundheit[[#Totals],[März]],Unterhaltung[[#Totals],[März]],Anreise[[#Totals],[März]],Täglich[[#Totals],[März]],Zuhause[[#Totals],[März]]) -> 2,718.00 € | G106: =SUM(Verschiedenes[[#Totals],[April]],Finanzen[[#Totals],[April]],Persönlichen[[#Totals],[April]],GebührenUndAbonnements[[#Totals],[April]],Erholung[[#Totals],[April]],Urlaub[[#Totals],[April]],Gesundheit[[#Totals],[April]],Unterhaltung[[#Totals],[April]],Anreise[[#Totals],[April]],Täglich[[#Totals],[April]],Zuhause[[#Totals],[April]]) -> 0.00 € | H106: =SUM(Verschiedenes[[#Totals],[Mai]],Finanzen[[#Totals],[Mai]],Persönlichen[[#Totals],[Mai]],GebührenUndAbonnements[[#Totals],[Mai]],Erholung[[#Totals],[Mai]],Urlaub[[#Totals],[Mai]],Gesundheit[[#Totals],[Mai]],Unterhaltung[[#Totals],[Mai]],Anreise[[#Totals],[Mai]],Täglich[[#Totals],[Mai]],Zuhause[[#Totals],[Mai]]) -> 0.00 € | I106: =SUM(Verschiedenes[[#Totals],[Juni]],Finanzen[[#Totals],[Juni]],Persönlichen[[#Totals],[Juni]],GebührenUndAbonnements[[#Totals],[Juni]],Erholung[[#Totals],[Juni]],Urlaub[[#Totals],[Juni]],Gesundheit[[#Totals],[Juni]],Unterhaltung[[#Totals],[Juni]],Anreise[[#Totals],[Juni]],Täglich[[#Totals],[Juni]],Zuhause[[#Totals],[Juni]]) -> 0.00 € | J106: =SUM(Verschiedenes[[#Totals],[Juli]],Finanzen[[#Totals],[Juli]],Persönlichen[[#Totals],[Juli]],GebührenUndAbonnements[[#Totals],[Juli]],Erholung[[#Totals],[Juli]],Urlaub[[#Totals],[Juli]],Gesundheit[[#Totals],[Juli]],Unterhaltung[[#Totals],[Juli]],Anreise[[#Totals],[Juli]],Täglich[[#Totals],[Juli]],Zuhause[[#Totals],[Juli]]) -> 0.00 € | K106: =SUM(Verschiedenes[[#Totals],[August]],Finanzen[[#Totals],[August]],Persönlichen[[#Totals],[August]],GebührenUndAbonnements[[#Totals],[August]],Erholung[[#Totals],[August]],Urlaub[[#Totals],[August]],Gesundheit[[#Totals],[August]],Unterhaltung[[#Totals],[August]],Anreise[[#Totals],[August]],Täglich[[#Totals],[August]],Zuhause[[#Totals],[August]]) -> 0.00 € | L106: =SUM(Verschiedenes[[#Totals],[September]],Finanzen[[#Totals],[September]],Persönlichen[[#Totals],[September]],GebührenUndAbonnements[[#Totals],[September]],Erholung[[#Totals],[September]],Urlaub[[#Totals],[September]],Gesundheit[[#Totals],[September]],Unterhaltung[[#Totals],[September]],Anreise[[#Totals],[September]],Täglich[[#Totals],[September]],Zuhause[[#Totals],[September]]) -> 0.00 € | M106: =SUM(Verschiedenes[[#Totals],[Oktober]],Finanzen[[#Totals],[Oktober]],Persönlichen[[#Totals],[Oktober]],GebührenUndAbonnements[[#Totals],[Oktober]],Erholung[[#Totals],[Oktober]],Urlaub[[#Totals],[Oktober]],Gesundheit[[#Totals],[Oktober]],Unterhaltung[[#Totals],[Oktober]],Anreise[[#Totals],[Oktober]],Täglich[[#Totals],[Oktober]],Zuhause[[#Totals],[Oktober]]) -> 0.00 € | N106: =SUM(Verschiedenes[[#Totals],[November]],Finanzen[[#Totals],[November]],Persönlichen[[#Totals],[November]],GebührenUndAbonnements[[#Totals],[November]],Erholung[[#Totals],[November]],Urlaub[[#Totals],[November]],Gesundheit[[#Totals],[November]],Unterhaltung[[#Totals],[November]],Anreise[[#Totals],[November]],Täglich[[#Totals],[November]],Zuhause[[#Totals],[November]]) -> 0.00 € | O106: =SUM(Verschiedenes[[#Totals],[Dezember]],Finanzen[[#Totals],[Dezember]],Persönlichen[[#Totals],[Dezember]],GebührenUndAbonnements[[#Totals],[Dezember]],Erholung[[#Totals],[Dezember]],Urlaub[[#Totals],[Dezember]],Gesundheit[[#Totals],[Dezember]],Unterhaltung[[#Totals],[Dezember]],Anreise[[#Totals],[Dezember]],Täglich[[#Totals],[Dezember]],Zuhause[[#Totals],[Dezember]]) -> 0.00 € | P106: =SUM(Verschiedenes[[#Totals],[Jahr]],Finanzen[[#Totals],[Jahr]],Persönlichen[[#Totals],[Jahr]],GebührenUndAbonnements[[#Totals],[Jahr]],Erholung[[#Totals],[Jahr]],Urlaub[[#Totals],[Jahr]],Gesundheit[[#Totals],[Jahr]],Unterhaltung[[#Totals],[Jahr]],Anreise[[#Totals],[Jahr]],Täglich[[#Totals],[Jahr]],Zuhause[[#Totals],[Jahr]]) -> 8,834.00 €
C107: Bar Soll/Haben | D107: =Einkünfte[[#Totals],[Januar]]-D106 -> 1,036.00 € | E107: =Einkünfte[[#Totals],[Februar]]-E106 -> 127.00 € | F107: =Einkünfte[[#Totals],[März]]-F106 -> 926.00 € | G107: =Einkünfte[[#Totals],[April]]-G106 -> 0.00 € | H107: =Einkünfte[[#Totals],[Mai]]-H106 -> 0.00 € | I107: =Einkünfte[[#Totals],[Juni]]-I106 -> 0.00 € | J107: =Einkünfte[[#Totals],[Juli]]-J106 -> 0.00 € | K107: =Einkünfte[[#Totals],[August]]-K106 -> 0.00 € | L107: =Einkünfte[[#Totals],[September]]-L106 -> 0.00 € | M107: =Einkünfte[[#Totals],[Oktober]]-M106 -> 0.00 € | N107: =Einkünfte[[#Totals],[November]]-N106 -> 0.00 € | O107: =Einkünfte[[#Totals],[Dezember]]-O106 -> 0.00 € | P107: =Einkünfte[[#Totals],[Jahr]]-P106 -> 2,089.00 €
